[Event "November 21 Early 2023"]
[Site "https://www.chess.com"]
[Date "2023.11.21"]
[Round "6"]
[White "Mirza, Diana"]
[Black "Matveeva, Olga"]
[Result "0-1"]
[Board "197"]
[TimeControl "180+1"]
[WhiteFideId "2503999"]
[BlackFideId "24107018"]
[WhiteElo "1813"]
[BlackElo "1883"]
[WhiteTeam "IRL"]
[BlackTeam "RUS"]
[WhiteClock "0:00:28"]
[BlackClock "0:00:30"]

1. e4 {[%clk 0:02:56]}  c6 {[%clk 0:03:00]} 2. d4 {[%clk 0:02:55]}  d5 {[%clk 0:03:00]} 3. exd5 {[%clk 0:02:56]}  cxd5 {[%clk 0:03:01]} 4. Bd3 {[%clk 0:02:56]}  Nc6 {[%clk 0:03:01]} 5. c3 {[%clk 0:02:56]}  Nf6 {[%clk 0:03:01]} 6. Bf4 {[%clk 0:02:55]}  Bg4 {[%clk 0:02:59]} 7. Qd2 {[%clk 0:02:56]}  e6 {[%clk 0:02:56]} 8. h3 {[%clk 0:02:56]}  Bh5 {[%clk 0:02:55]} 9. Ne2 {[%clk 0:02:56]}  Bd6 {[%clk 0:02:52]} 10. Bxd6 {[%clk 0:02:55]}  Qxd6 {[%clk 0:02:53]} 11. O-O {[%clk 0:02:55]}  O-O {[%clk 0:02:52]} 12. Na3 {[%clk 0:02:52]}  a6 {[%clk 0:02:50]} 13. Nc2 {[%clk 0:02:53]}  Ne4 {[%clk 0:02:42]} 14. Bxe4 {[%clk 0:02:47]}  dxe4 {[%clk 0:02:43]} 15. Qf4 {[%clk 0:02:44]}  e5 {[%clk 0:02:18]} 16. Qxe4 {[%clk 0:02:30]}  Bg6 {[%clk 0:02:14]} 17. dxe5 {[%clk 0:02:04]}  Nxe5 {[%clk 0:02:12]} 18. Qd4 {[%clk 0:01:59]}  Qc7 {[%clk 0:01:49]} 19. Nb4 {[%clk 0:01:53]}  Rad8 {[%clk 0:01:46]} 20. Qf4 {[%clk 0:01:51]}  a5 {[%clk 0:01:41]} 21. Rac1 {[%clk 0:01:37]}  axb4 {[%clk 0:01:39]} 22. cxb4 {[%clk 0:01:37]}  Qb8 {[%clk 0:01:39]} 23. Rc5 {[%clk 0:01:33]}  Nd3 {[%clk 0:01:39]} 24. Qxb8 {[%clk 0:01:31]}  Rxb8 {[%clk 0:01:40]} 25. Rc7 {[%clk 0:01:29]}  Nxb4 {[%clk 0:01:37]} 26. Nf4 {[%clk 0:01:29]}  Nxa2 {[%clk 0:01:33]} 27. Nxg6 {[%clk 0:01:29]}  hxg6 {[%clk 0:01:34]} 28. Ra1 {[%clk 0:01:29]}  Nb4 {[%clk 0:01:34]} 29. Ra7 {[%clk 0:01:25]}  b6 {[%clk 0:01:34]} 30. Rd7 {[%clk 0:01:18]}  Rbd8 {[%clk 0:01:14]} 31. Rdb7 {[%clk 0:01:13]}  Rd1+ {[%clk 0:01:11]} 32. Kh2 {[%clk 0:01:13]}  Nd3 {[%clk 0:01:07]} 33. Rxb6 {[%clk 0:01:02]}  Nxf2 {[%clk 0:01:06]} 34. Kg3 {[%clk 0:01:03]}  Ne4+ {[%clk 0:01:05]} 35. Kf3 {[%clk 0:01:02]}  Nf6 {[%clk 0:00:53]} 36. b4 {[%clk 0:01:01]}  Rd3+ {[%clk 0:00:50]} 37. Ke2 {[%clk 0:00:59]}  Rb3 {[%clk 0:00:50]} 38. b5 {[%clk 0:00:58]}  Re8+ {[%clk 0:00:45]} 39. Kf1 {[%clk 0:00:57]}  Rb1+ {[%clk 0:00:40]} 40. Kf2 {[%clk 0:00:57]}  Rb2+ {[%clk 0:00:40]} 41. Kg3 {[%clk 0:00:56]}  Nh5+ {[%clk 0:00:35]} 42. Kh2 {[%clk 0:00:46]}  Ree2 {[%clk 0:00:32]} 43. Rb8+ {[%clk 0:00:45]}  Kh7 {[%clk 0:00:31]} 44. h4 {[%clk 0:00:27]}  Rxg2+ {[%clk 0:00:30]} 45. Kh3 {[%clk 0:00:28]}  Rg3# {[%clk 0:00:30]} 0-1

[Event "November 21 Early 2023"]
[Site "https://www.chess.com"]
[Date "2023.11.21"]
[Round "6"]
[White "Lohani, Sujana"]
[Black "Gallegos Diaz, Carlos Alberto"]
[Result "0-1"]
[Board "198"]
[TimeControl "180+1"]
[WhiteFideId "12311987"]
[BlackFideId "3900886"]
[WhiteElo "1718"]
[BlackElo "2362"]
[WhiteTeam "NEP"]
[BlackTeam "VEN"]
[WhiteClock "0:00:00"]
[BlackClock "0:00:11"]

1. d4 {[%clk 0:03:00]}  Nf6 {[%clk 0:02:58]} 2. Nf3 {[%clk 0:03:00]}  d6 {[%clk 0:02:58]} 3. c4 {[%clk 0:03:01]}  Nbd7 {[%clk 0:02:57]} 4. g3 {[%clk 0:03:02]}  e5 {[%clk 0:02:57]} 5. dxe5 {[%clk 0:03:00]}  dxe5 {[%clk 0:02:58]} 6. Bg2 {[%clk 0:02:55]}  Bb4+ {[%clk 0:02:53]} 7. Bd2 {[%clk 0:02:54]}  Qe7 {[%clk 0:02:51]} 8. O-O {[%clk 0:02:53]}  Bxd2 {[%clk 0:02:35]} 9. Qxd2 {[%clk 0:02:45]}  O-O {[%clk 0:02:33]} 10. Nc3 {[%clk 0:02:32]}  c6 {[%clk 0:02:32]} 11. e3 {[%clk 0:02:24]}  h6 {[%clk 0:02:26]} 12. Rad1 {[%clk 0:02:23]}  e4 {[%clk 0:02:24]} 13. Nd4 {[%clk 0:02:20]}  Nc5 {[%clk 0:02:06]} 14. b4 {[%clk 0:01:27]}  Na6 {[%clk 0:02:04]} 15. a3 {[%clk 0:01:26]}  Bg4 {[%clk 0:02:01]} 16. Rc1 {[%clk 0:01:24]}  Rad8 {[%clk 0:02:01]} 17. c5 {[%clk 0:01:23]}  Qe5 {[%clk 0:01:53]} 18. Qc2 {[%clk 0:01:21]}  Rfe8 {[%clk 0:01:52]} 19. Nb3 {[%clk 0:01:01]}  Bf3 {[%clk 0:01:28]} 20. Nd2 {[%clk 0:00:59]}  Qh5 {[%clk 0:01:05]} 21. Ndxe4 {[%clk 0:00:50]}  Nxe4 {[%clk 0:01:00]} 22. Nxe4 {[%clk 0:00:47]}  Rxe4 {[%clk 0:00:57]} 23. Qxe4 {[%clk 0:00:26]}  Bxe4 {[%clk 0:00:56]} 24. Bxe4 {[%clk 0:00:26]}  Nc7 {[%clk 0:00:50]} 25. Kg2 {[%clk 0:00:21]}  Qe5 {[%clk 0:00:39]} 26. Bf3 {[%clk 0:00:20]}  Qb2 {[%clk 0:00:36]} 27. Rfd1 {[%clk 0:00:15]}  Rxd1 {[%clk 0:00:29]} 28. Rxd1 {[%clk 0:00:16]}  Qxa3 {[%clk 0:00:19]} 29. Rd8+ {[%clk 0:00:16]}  Kh7 {[%clk 0:00:18]} 30. Rd6 {[%clk 0:00:15]}  Nb5 {[%clk 0:00:17]} 31. Rd7 {[%clk 0:00:14]}  Kg8 {[%clk 0:00:15]} 32. Rxb7 {[%clk 0:00:09]}  Qxb4 {[%clk 0:00:14]} 33. Bxc6 {[%clk 0:00:09]}  a6 {[%clk 0:00:14]} 34. Rb8+ {[%clk 0:00:02]}  Kh7 {[%clk 0:00:13]} 35. Rb7 {[%clk 0:00:02]}  Qxc5 {[%clk 0:00:12]} 36. Be4+ {[%clk 0:00:00]}  f5 {[%clk 0:00:11]} 0-1

[Event "November 21 Early 2023"]
[Site "https://www.chess.com"]
[Date "2023.11.21"]
[Round "6"]
[White "Marin Pincheira, Carlos"]
[Black "Golubenko, Valentina"]
[Result "1-0"]
[Board "199"]
[TimeControl "180+1"]
[WhiteFideId "3407543"]
[BlackFideId "4501993"]
[WhiteElo "2080"]
[BlackElo "2126"]
[WhiteTeam "CHI"]
[BlackTeam "CRO"]
[WhiteClock "0:00:18"]
[BlackClock "0:00:00"]

1. d4 {[%clk 0:03:00]}  g6 {[%clk 0:02:57]} 2. c4 {[%clk 0:03:00]}  Bg7 {[%clk 0:02:57]} 3. Nc3 {[%clk 0:03:00]}  c5 {[%clk 0:02:57]} 4. d5 {[%clk 0:02:55]}  d6 {[%clk 0:02:55]} 5. e4 {[%clk 0:02:53]}  Nf6 {[%clk 0:02:55]} 6. Nf3 {[%clk 0:02:52]}  e6 {[%clk 0:02:55]} 7. dxe6 {[%clk 0:02:34]}  Bxe6 {[%clk 0:02:54]} 8. Bf4 {[%clk 0:02:35]}  O-O {[%clk 0:02:45]} 9. Qxd6 {[%clk 0:02:27]}  Qa5 {[%clk 0:02:33]} 10. O-O-O {[%clk 0:02:05]}  Nc6 {[%clk 0:02:24]} 11. Be2 {[%clk 0:01:47]}  Ne8 {[%clk 0:01:38]} 12. Qd2 {[%clk 0:01:31]}  Rd8 {[%clk 0:01:28]} 13. Qc2 {[%clk 0:01:21]}  Nb4 {[%clk 0:01:22]} 14. Qb3 {[%clk 0:01:20]}  Bxc3 {[%clk 0:01:08]} 15. bxc3 {[%clk 0:01:20]}  Nxa2+ {[%clk 0:00:21]} 16. Kb2 {[%clk 0:01:17]}  Nxc3 {[%clk 0:00:19]} 17. Qxc3 {[%clk 0:01:17]}  Qb6+ {[%clk 0:00:15]} 18. Kc2 {[%clk 0:01:11]}  f6 {[%clk 0:00:11]} 19. Rxd8 {[%clk 0:01:02]}  Qxd8 {[%clk 0:00:10]} 20. Rd1 {[%clk 0:01:03]}  Qb6 {[%clk 0:00:10]} 21. h4 {[%clk 0:00:38]}  Qa6 {[%clk 0:00:09]} 22. h5 {[%clk 0:00:36]}  Qa2+ {[%clk 0:00:08]} 23. Qb2 {[%clk 0:00:36]}  Qa4+ {[%clk 0:00:07]} 24. Qb3 {[%clk 0:00:36]}  Qa6 {[%clk 0:00:07]} 25. h6 {[%clk 0:00:34]}  b6 {[%clk 0:00:03]} 26. Kb2 {[%clk 0:00:32]}  Qb7 {[%clk 0:00:03]} 27. Qe3 {[%clk 0:00:24]}  a5 {[%clk 0:00:02]} 28. Nd2 {[%clk 0:00:18]}  a4 {[%clk 0:00:02]} 29. Nb1 {[%clk 0:00:19]}  b5 {[%clk 0:00:02]} 30. cxb5 {[%clk 0:00:18]}  c4 {[%clk 0:00:00]} 31. Na3 {[%clk 0:00:18]} 1-0

[Event "November 21 Early 2023"]
[Site "https://www.chess.com"]
[Date "2023.11.21"]
[Round "6"]
[White "Saim, Mohamed Ilias"]
[Black "Zepeda Berlanga, Jan Enrique"]
[Result "1-0"]
[Board "200"]
[TimeControl "180+1"]
[WhiteFideId "7900465"]
[BlackFideId "5132355"]
[WhiteElo "2063"]
[BlackElo "1680"]
[WhiteTeam "ALG"]
[BlackTeam "MEX"]
[WhiteClock "0:00:10"]
[BlackClock "0:00:00"]

1. d4 {[%clk 0:03:00]}  Nf6 {[%clk 0:02:54]} 2. c4 {[%clk 0:03:00]}  g6 {[%clk 0:02:54]} 3. Nf3 {[%clk 0:03:01]}  Bg7 {[%clk 0:02:54]} 4. e3 {[%clk 0:03:01]}  O-O {[%clk 0:02:51]} 5. Be2 {[%clk 0:03:02]}  c5 {[%clk 0:02:47]} 6. d5 {[%clk 0:03:01]}  d6 {[%clk 0:02:47]} 7. Nc3 {[%clk 0:03:01]}  e6 {[%clk 0:02:44]} 8. e4 {[%clk 0:03:01]}  Re8 {[%clk 0:02:41]} 9. O-O {[%clk 0:03:01]}  Na6 {[%clk 0:02:20]} 10. h3 {[%clk 0:02:54]}  Nc7 {[%clk 0:02:15]} 11. Qc2 {[%clk 0:02:45]}  exd5 {[%clk 0:02:13]} 12. exd5 {[%clk 0:02:44]}  a6 {[%clk 0:01:16]} 13. a4 {[%clk 0:02:43]}  h5 {[%clk 0:01:09]} 14. Bd3 {[%clk 0:02:41]}  Re7 {[%clk 0:00:52]} 15. Bg5 {[%clk 0:02:39]}  Qe8 {[%clk 0:00:44]} 16. Rfe1 {[%clk 0:02:22]}  Rb8 {[%clk 0:00:28]} 17. Ne4 {[%clk 0:02:07]}  Rxe4 {[%clk 0:00:24]} 18. Bxe4 {[%clk 0:02:04]}  b5 {[%clk 0:00:20]} 19. axb5 {[%clk 0:01:57]}  axb5 {[%clk 0:00:17]} 20. Bxg6 {[%clk 0:01:56]}  Qd7 {[%clk 0:00:17]} 21. Bxf6 {[%clk 0:01:46]}  Bxf6 {[%clk 0:00:16]} 22. Bxh5 {[%clk 0:01:43]}  bxc4 {[%clk 0:00:16]} 23. Qxc4 {[%clk 0:01:26]}  Rxb2 {[%clk 0:00:14]} 24. Qg4+ {[%clk 0:01:12]}  Qxg4 {[%clk 0:00:14]} 25. Bxg4 {[%clk 0:01:13]}  Bxg4 {[%clk 0:00:14]} 26. hxg4 {[%clk 0:01:14]}  c4 {[%clk 0:00:11]} 27. g5 {[%clk 0:01:12]}  Bg7 {[%clk 0:00:10]} 28. Rac1 {[%clk 0:00:55]}  c3 {[%clk 0:00:09]} 29. Re3 {[%clk 0:00:45]}  Nxd5 {[%clk 0:00:09]} 30. Rd3 {[%clk 0:00:42]}  Nf4 {[%clk 0:00:07]} 31. Rxd6 {[%clk 0:00:40]}  Ne2+ {[%clk 0:00:08]} 32. Kh2 {[%clk 0:00:35]}  Nxc1 {[%clk 0:00:08]} 33. Rd8+ {[%clk 0:00:29]}  Kh7 {[%clk 0:00:08]} 34. Ne1 {[%clk 0:00:25]}  Rxf2 {[%clk 0:00:07]} 35. Rd1 {[%clk 0:00:22]}  Be5+ {[%clk 0:00:06]} 36. Kg1 {[%clk 0:00:21]}  Rc2 {[%clk 0:00:05]} 37. Nxc2 {[%clk 0:00:21]}  Ne2+ {[%clk 0:00:05]} 38. Kf2 {[%clk 0:00:20]}  Nf4 {[%clk 0:00:04]} 39. Ne3 {[%clk 0:00:16]}  Ng6 {[%clk 0:00:01]} 40. Rc1 {[%clk 0:00:15]}  Bd4 {[%clk 0:00:01]} 41. Ke2 {[%clk 0:00:15]}  Ne5 {[%clk 0:00:02]} 42. Rc2 {[%clk 0:00:10]}  Bxe3 {[%clk 0:00:02]} 43. Kxe3 {[%clk 0:00:10]}  Ng4+ {[%clk 0:00:00]} 44. Kd3 {[%clk 0:00:10]} 1-0

[Event "November 21 Early 2023"]
[Site "https://www.chess.com"]
[Date "2023.11.21"]
[Round "6"]
[White "cycygogne"]
[Black "missponyo10"]
[Result "0-1"]
[Board "202"]
[TimeControl "180+1"]
[WhiteElo "2259"]
[BlackElo "2171"]
[WhiteClock "0:00:24"]
[BlackClock "0:00:47"]

1. Nf3 {[%clk 0:03:00]}  d5 {[%clk 0:02:57]} 2. b3 {[%clk 0:03:00]}  c6 {[%clk 0:02:55]} 3. Bb2 {[%clk 0:03:00]}  e6 {[%clk 0:02:55]} 4. e3 {[%clk 0:02:59]}  Nf6 {[%clk 0:02:55]} 5. Be2 {[%clk 0:02:57]}  Bd6 {[%clk 0:02:55]} 6. Ne5 {[%clk 0:02:54]}  O-O {[%clk 0:02:50]} 7. f4 {[%clk 0:02:54]}  Nfd7 {[%clk 0:02:48]} 8. O-O {[%clk 0:02:50]}  f6 {[%clk 0:02:47]} 9. Nf3 {[%clk 0:02:47]}  e5 {[%clk 0:02:32]} 10. fxe5 {[%clk 0:02:42]}  fxe5 {[%clk 0:02:30]} 11. c4 {[%clk 0:02:41]}  Qe7 {[%clk 0:02:25]} 12. d4 {[%clk 0:02:14]}  e4 {[%clk 0:02:22]} 13. Nfd2 {[%clk 0:02:00]}  Nf6 {[%clk 0:02:18]} 14. Qe1 {[%clk 0:01:59]}  Bg4 {[%clk 0:02:14]} 15. Nc3 {[%clk 0:01:53]}  Nbd7 {[%clk 0:02:04]} 16. Qh4 {[%clk 0:01:52]}  Bxe2 {[%clk 0:02:02]} 17. Nxe2 {[%clk 0:01:51]}  Qe6 {[%clk 0:02:00]} 18. Nf4 {[%clk 0:01:45]}  Qg4 {[%clk 0:01:50]} 19. Qxg4 {[%clk 0:01:22]}  Nxg4 {[%clk 0:01:51]} 20. Rae1 {[%clk 0:01:22]}  g5 {[%clk 0:01:47]} 21. Ne6 {[%clk 0:01:16]}  Bxh2+ {[%clk 0:01:39]} 22. Kh1 {[%clk 0:01:16]}  Rxf1+ {[%clk 0:01:36]} 23. Nxf1 {[%clk 0:01:09]}  Bd6 {[%clk 0:01:32]} 24. Nxg5 {[%clk 0:01:08]}  Ndf6 {[%clk 0:01:25]} 25. g3 {[%clk 0:00:52]}  Nf2+ {[%clk 0:01:23]} 26. Kg2 {[%clk 0:00:52]}  Nd3 {[%clk 0:01:23]} 27. Re2 {[%clk 0:00:51]}  h6 {[%clk 0:01:18]} 28. Ne6 {[%clk 0:00:46]}  Re8 {[%clk 0:01:16]} 29. Nf4 {[%clk 0:00:46]}  Bxf4 {[%clk 0:01:16]} 30. gxf4 {[%clk 0:00:45]}  Kf7 {[%clk 0:01:15]} 31. Kh3 {[%clk 0:00:41]}  Rg8 {[%clk 0:01:14]} 32. Ba3 {[%clk 0:00:41]}  Rg1 {[%clk 0:01:10]} 33. Ng3 {[%clk 0:00:40]}  h5 {[%clk 0:01:01]} 34. Bd6 {[%clk 0:00:32]}  Ke6 {[%clk 0:00:54]} 35. Be5 {[%clk 0:00:32]}  Ng4 {[%clk 0:00:53]} 36. Nxh5 {[%clk 0:00:26]}  Ngf2+ {[%clk 0:00:48]} 37. Kh4 {[%clk 0:00:24]}  Rg4# {[%clk 0:00:47]} 0-1

[Event "November 21 Early 2023"]
[Site "https://www.chess.com"]
[Date "2023.11.21"]
[Round "6"]
[White "Samarth J Rao"]
[Black "Adithya A Chullikkad"]
[Result "1-0"]
[Board "206"]
[TimeControl "180+1"]
[WhiteFideId "46652370"]
[BlackFideId "45078734"]
[WhiteElo "1564"]
[BlackElo "2042"]
[WhiteTeam "IND"]
[BlackTeam "IND"]
[WhiteClock "0:00:38"]
[BlackClock "0:00:00"]

1. e4 {[%clk 0:02:55]}  c5 {[%clk 0:02:59]} 2. Nc3 {[%clk 0:02:54]}  Nc6 {[%clk 0:02:59]} 3. g3 {[%clk 0:02:55]}  g6 {[%clk 0:02:59]} 4. Bg2 {[%clk 0:02:55]}  Bg7 {[%clk 0:02:59]} 5. d3 {[%clk 0:02:56]}  e6 {[%clk 0:03:00]} 6. Be3 {[%clk 0:02:56]}  Nge7 {[%clk 0:03:01]} 7. Qd2 {[%clk 0:02:55]}  b6 {[%clk 0:03:01]} 8. Bh6 {[%clk 0:02:50]}  Bxh6 {[%clk 0:02:48]} 9. Qxh6 {[%clk 0:02:51]}  Nd4 {[%clk 0:02:39]} 10. O-O-O {[%clk 0:02:50]}  Bb7 {[%clk 0:02:29]} 11. Qg7 {[%clk 0:02:48]}  Rg8 {[%clk 0:02:29]} 12. Qxh7 {[%clk 0:02:47]}  Qc7 {[%clk 0:02:24]} 13. Qh4 {[%clk 0:02:44]}  g5 {[%clk 0:02:20]} 14. Qh5 {[%clk 0:02:43]}  Rg7 {[%clk 0:01:57]} 15. Qh8+ {[%clk 0:02:40]}  Rg8 {[%clk 0:01:57]} 16. Qf6 {[%clk 0:02:40]}  Qd6 {[%clk 0:01:50]} 17. e5 {[%clk 0:02:34]}  Qc7 {[%clk 0:01:43]} 18. Bxb7 {[%clk 0:02:35]}  Qxb7 {[%clk 0:01:44]} 19. Ne4 {[%clk 0:02:35]}  Nef5 {[%clk 0:01:39]} 20. g4 {[%clk 0:02:33]}  d5 {[%clk 0:01:32]} 21. gxf5 {[%clk 0:02:15]}  dxe4 {[%clk 0:01:30]} 22. fxe6 {[%clk 0:02:15]}  fxe6 {[%clk 0:01:26]} 23. Nh3 {[%clk 0:02:03]}  exd3 {[%clk 0:01:21]} 24. Nxg5 {[%clk 0:01:51]}  d2+ {[%clk 0:00:55]} 25. Kb1 {[%clk 0:01:46]}  Qc6 {[%clk 0:00:43]} 26. c3 {[%clk 0:01:32]}  Rxg5 {[%clk 0:00:32]} 27. cxd4 {[%clk 0:01:31]}  Rf5 {[%clk 0:00:23]} 28. Qg6+ {[%clk 0:01:24]}  Kd8 {[%clk 0:00:20]} 29. dxc5 {[%clk 0:01:24]}  Kc8 {[%clk 0:00:17]} 30. Rhg1 {[%clk 0:01:16]}  Kb7 {[%clk 0:00:15]} 31. Rxd2 {[%clk 0:01:06]}  Rc8 {[%clk 0:00:08]} 32. Rc1 {[%clk 0:01:02]}  Rxe5 {[%clk 0:00:06]} 33. Rdc2 {[%clk 0:01:00]}  Rxc5 {[%clk 0:00:05]} 34. Rxc5 {[%clk 0:00:59]}  bxc5 {[%clk 0:00:05]} 35. Qg7+ {[%clk 0:00:53]}  Kb8 {[%clk 0:00:06]} 36. Qe5+ {[%clk 0:00:51]}  Ka8 {[%clk 0:00:06]} 37. f4 {[%clk 0:00:46]}  Rd8 {[%clk 0:00:03]} 38. Qxc5 {[%clk 0:00:44]}  Qxc5 {[%clk 0:00:03]} 39. Rxc5 {[%clk 0:00:45]}  Rd1+ {[%clk 0:00:03]} 40. Rc1 {[%clk 0:00:45]}  Rd2 {[%clk 0:00:04]} 41. Re1 {[%clk 0:00:43]}  Rxh2 {[%clk 0:00:04]} 42. Rxe6 {[%clk 0:00:43]}  Rf2 {[%clk 0:00:04]} 43. Rf6 {[%clk 0:00:42]}  Kb8 {[%clk 0:00:05]} 44. Rf7 {[%clk 0:00:43]}  Kc8 {[%clk 0:00:05]} 45. a3 {[%clk 0:00:43]}  a5 {[%clk 0:00:03]} 46. Ka2 {[%clk 0:00:43]}  a4 {[%clk 0:00:04]} 47. f5 {[%clk 0:00:42]}  Kd8 {[%clk 0:00:04]} 48. Ra7 {[%clk 0:00:41]}  Rf4 {[%clk 0:00:03]} 49. Ra5 {[%clk 0:00:41]}  Ke7 {[%clk 0:00:03]} 50. Kb1 {[%clk 0:00:41]}  Kf6 {[%clk 0:00:03]} 51. Kc2 {[%clk 0:00:42]}  Rc4+ {[%clk 0:00:03]} 52. Kd3 {[%clk 0:00:41]}  Rh4 {[%clk 0:00:03]} 53. Kc3 {[%clk 0:00:41]}  Rh3+ {[%clk 0:00:02]} 54. Kc2 {[%clk 0:00:38]}  Rh4 {[%clk 0:00:00]} 55. Rb5 {[%clk 0:00:38]} 1-0

[Event "November 21 Early 2023"]
[Site "https://www.chess.com"]
[Date "2023.11.21"]
[Round "6"]
[White "Gyulamiryan-koryun"]
[Black "Fernandez Hernandez, Gerardo"]
[Result "0-1"]
[Board "208"]
[TimeControl "180+1"]
[BlackFideId "2207400"]
[WhiteElo "1895"]
[BlackElo "2114"]
[BlackTeam "ESP"]
[WhiteClock "0:00:01"]
[BlackClock "0:00:05"]

1. e4 {[%clk 0:02:59]}  e6 {[%clk 0:03:00]} 2. d4 {[%clk 0:02:58]}  d5 {[%clk 0:03:00]} 3. e5 {[%clk 0:02:55]}  c5 {[%clk 0:03:00]} 4. c3 {[%clk 0:02:55]}  Nc6 {[%clk 0:03:00]} 5. Nf3 {[%clk 0:02:54]}  Qb6 {[%clk 0:03:01]} 6. Qb3 {[%clk 0:02:52]}  f6 {[%clk 0:02:39]} 7. exf6 {[%clk 0:02:46]}  Nxf6 {[%clk 0:02:38]} 8. Bg5 {[%clk 0:02:38]}  Bd6 {[%clk 0:02:33]} 9. Qxb6 {[%clk 0:02:35]}  axb6 {[%clk 0:02:33]} 10. Na3 {[%clk 0:02:31]}  O-O {[%clk 0:02:14]} 11. Nb5 {[%clk 0:02:06]}  Bb8 {[%clk 0:02:12]} 12. Bd3 {[%clk 0:02:01]}  Bd7 {[%clk 0:02:02]} 13. a4 {[%clk 0:01:57]}  Ne4 {[%clk 0:01:53]} 14. Bxe4 {[%clk 0:01:53]}  dxe4 {[%clk 0:01:54]} 15. Nd2 {[%clk 0:01:52]}  cxd4 {[%clk 0:01:49]} 16. Nxe4 {[%clk 0:01:47]}  dxc3 {[%clk 0:01:37]} 17. Nexc3 {[%clk 0:01:45]}  Nb4 {[%clk 0:01:28]} 18. O-O {[%clk 0:01:34]}  Nd5 {[%clk 0:00:50]} 19. Nxd5 {[%clk 0:01:26]}  exd5 {[%clk 0:00:51]} 20. Rad1 {[%clk 0:01:04]}  Rxa4 {[%clk 0:00:44]} 21. Rxd5 {[%clk 0:00:57]}  Bc6 {[%clk 0:00:44]} 22. Nc3 {[%clk 0:00:56]}  Rg4 {[%clk 0:00:40]} 23. h3 {[%clk 0:00:41]}  Rb4 {[%clk 0:00:22]} 24. Rd2 {[%clk 0:00:37]}  Be5 {[%clk 0:00:18]} 25. Rfd1 {[%clk 0:00:35]}  h6 {[%clk 0:00:17]} 26. Be7 {[%clk 0:00:34]}  Rff4 {[%clk 0:00:15]} 27. Bxb4 {[%clk 0:00:31]}  Rxb4 {[%clk 0:00:16]} 28. Re1 {[%clk 0:00:18]}  Bf6 {[%clk 0:00:14]} 29. Rde2 {[%clk 0:00:16]}  Kh7 {[%clk 0:00:13]} 30. Re6 {[%clk 0:00:16]}  Rxb2 {[%clk 0:00:11]} 31. Ne4 {[%clk 0:00:15]}  Bd4 {[%clk 0:00:09]} 32. Nd6 {[%clk 0:00:14]}  Bc5 {[%clk 0:00:08]} 33. Rf1 {[%clk 0:00:14]}  Rd2 {[%clk 0:00:07]} 34. Nc4 {[%clk 0:00:12]}  Rd5 {[%clk 0:00:07]} 35. Rb1 {[%clk 0:00:10]}  Rg5 {[%clk 0:00:06]} 36. g3 {[%clk 0:00:09]}  Bd5 {[%clk 0:00:06]} 37. Nxb6 {[%clk 0:00:08]}  Bxe6 {[%clk 0:00:06]} 38. Na4 {[%clk 0:00:06]}  Bd4 {[%clk 0:00:05]} 39. Rxb7 {[%clk 0:00:03]}  Ra5 {[%clk 0:00:04]} 40. Nb6 {[%clk 0:00:03]}  Rb5 {[%clk 0:00:03]} 41. Re7 {[%clk 0:00:02]}  Rxb6 {[%clk 0:00:03]} 42. Rc7 {[%clk 0:00:01]}  Bd5 {[%clk 0:00:03]} 43. Re7 {[%clk 0:00:02]}  Rb1+ {[%clk 0:00:04]} 44. Kh2 {[%clk 0:00:01]}  Rh1# {[%clk 0:00:05]} 0-1

[Event "November 21 Early 2023"]
[Site "https://www.chess.com"]
[Date "2023.11.21"]
[Round "7"]
[White "Andreikin, Dmitry"]
[Black "Carlsen, Magnus"]
[Result "0-1"]
[Board "1"]
[TimeControl "180+1"]
[WhiteFideId "4158814"]
[BlackFideId "1503014"]
[WhiteElo "2741"]
[BlackElo "2887"]
[WhiteTeam "FID"]
[BlackTeam "NOR"]
[WhiteClock "0:00:03"]
[BlackClock "0:00:14"]

1. d4 {[%clk 0:03:00]}  g6 {[%clk 0:03:00]} 2. e4 {[%clk 0:02:59]}  Nf6 {[%clk 0:03:01]} 3. Nc3 {[%clk 0:02:58]}  d5 {[%clk 0:03:00]} 4. e5 {[%clk 0:02:57]}  Ne4 {[%clk 0:03:00]} 5. Bd3 {[%clk 0:02:55]}  Nxc3 {[%clk 0:03:00]} 6. bxc3 {[%clk 0:02:55]}  c5 {[%clk 0:02:59]} 7. h3 {[%clk 0:02:56]}  Nc6 {[%clk 0:02:53]} 8. Nf3 {[%clk 0:02:56]}  c4 {[%clk 0:02:50]} 9. Be2 {[%clk 0:02:56]}  Bf5 {[%clk 0:02:51]} 10. O-O {[%clk 0:02:52]}  e6 {[%clk 0:02:45]} 11. g4 {[%clk 0:02:45]}  Be4 {[%clk 0:02:45]} 12. Ng5 {[%clk 0:02:29]}  h5 {[%clk 0:02:44]} 13. f3 {[%clk 0:02:14]}  Be7 {[%clk 0:02:38]} 14. h4 {[%clk 0:02:04]}  Qa5 {[%clk 0:01:57]} 15. Bd2 {[%clk 0:01:43]}  Bxg5 {[%clk 0:01:27]} 16. hxg5 {[%clk 0:01:42]}  Bxf3 {[%clk 0:01:23]} 17. Bxf3 {[%clk 0:01:38]}  hxg4 {[%clk 0:01:22]} 18. Bxg4 {[%clk 0:01:39]}  Rh7 {[%clk 0:01:22]} 19. Kg2 {[%clk 0:01:29]}  Qa4 {[%clk 0:01:16]} 20. Qb1 {[%clk 0:01:11]}  O-O-O {[%clk 0:01:10]} 21. Qb2 {[%clk 0:01:11]}  Rdh8 {[%clk 0:01:00]} 22. Rh1 {[%clk 0:01:11]}  Rxh1 {[%clk 0:01:00]} 23. Rxh1 {[%clk 0:01:11]}  Rxh1 {[%clk 0:01:01]} 24. Kxh1 {[%clk 0:01:12]}  Ne7 {[%clk 0:01:01]} 25. Kg2 {[%clk 0:00:55]}  b6 {[%clk 0:01:01]} 26. Kf2 {[%clk 0:00:49]}  Kd7 {[%clk 0:01:01]} 27. Ke3 {[%clk 0:00:45]}  Ke8 {[%clk 0:00:55]} 28. Qb1 {[%clk 0:00:45]}  Nc6 {[%clk 0:00:52]} 29. Bc1 {[%clk 0:00:44]}  Nd8 {[%clk 0:00:49]} 30. Kd2 {[%clk 0:00:42]}  Kd7 {[%clk 0:00:47]} 31. Bb2 {[%clk 0:00:42]}  Qb5 {[%clk 0:00:46]} 32. Qc1 {[%clk 0:00:42]}  Qa4 {[%clk 0:00:46]} 33. Ba3 {[%clk 0:00:42]}  Ke8 {[%clk 0:00:35]} 34. Qb2 {[%clk 0:00:42]}  Kd7 {[%clk 0:00:35]} 35. Bf8 {[%clk 0:00:38]}  Ke8 {[%clk 0:00:33]} 36. Bg7 {[%clk 0:00:38]}  Nc6 {[%clk 0:00:29]} 37. Bf6 {[%clk 0:00:37]}  Qa5 {[%clk 0:00:29]} 38. Ke3 {[%clk 0:00:33]}  Kd7 {[%clk 0:00:29]} 39. Qa1 {[%clk 0:00:32]}  Qa3 {[%clk 0:00:18]} 40. Kd2 {[%clk 0:00:31]}  b5 {[%clk 0:00:18]} 41. Qh1 {[%clk 0:00:17]}  Kc7 {[%clk 0:00:15]} 42. Qh7 {[%clk 0:00:16]}  b4 {[%clk 0:00:16]} 43. Qxf7+ {[%clk 0:00:15]}  Kb6 {[%clk 0:00:16]} 44. cxb4 {[%clk 0:00:11]}  Qxb4+ {[%clk 0:00:16]} 45. Kd1 {[%clk 0:00:08]}  Qb1+ {[%clk 0:00:15]} 46. Kd2 {[%clk 0:00:08]}  c3+ {[%clk 0:00:13]} 47. Kd3 {[%clk 0:00:03]}  Nb4+ {[%clk 0:00:11]} 48. Kxc3 {[%clk 0:00:01]}  Qxc2+ {[%clk 0:00:12]} 49. Kxb4 {[%clk 0:00:01]}  a5+ {[%clk 0:00:12]} 50. Ka3 {[%clk 0:00:02]}  Qc3+ {[%clk 0:00:13]} 51. Ka4 {[%clk 0:00:03]}  Qb4# {[%clk 0:00:14]} 0-1